bitfinex-derivatives/quotes_SOLF0:USTF0_20250101
["timestamp","ask_amount","ask_price","bid_price","bid_amount"]
[1735770329702,64.24224352,194.56,194.49,8.1740778]
[1735770330697,2.5756,194.52,194.49,8.1740778]
[1735770334499,2.5756,194.52,194.5,2.9]
[1735770342004,56.06816572,194.56,194.5,2.9]
[1735770342196,64.24224352,194.56,194.5,2.9]
[1735770342396,56.06816572,194.56,194.5,2.9]
[1735770342603,2.5755,194.54,194.5,2.9]
[1735770345209,4.99312412,194.56,194.52,2.5756]
[1735770346107,4.99312412,194.56,194.51,10.7498778]
[1735770346809,7.56822412,194.56,194.51,10.7498778]
[1735770348808,7.56822412,194.56,194.52,2.5756]
[1735770349903,4.99312412,194.56,194.52,2.5756]
[1735770350300,4.99312412,194.56,194.5,5.4758]
[1735770350505,2.5752,194.56,194.5,11.0740778]
[1735770351507,2.5752,194.56,194.51,2.5757]
[1735770354813,2.5752,194.56,194.52,2.5756]
[1735770356916,10.7490778,194.58,194.53,2.5755]
[1735770361315,10.7490778,194.58,194.54,2.5754]
[1735770363217,10.7490778,194.58,194.52,8.1740778]
[1735770363418,10.7490778,194.58,194.54,2.5753]
[1735770368726,2.575,194.58,194.54,2.5753]
[1735770385438,2.575,194.58,194.54,5.4753]
[1735770385630,2.575,194.58,194.54,2.9]
[1735770390835,2.575,194.57,194.54,2.9]
[1735770396041,2.5755,194.53,194.49,2.5759]
[1735770396242,8.7300116,194.6,194.49,2.5759]
[1735770396243,8.1740778,194.55,194.49,2.5759]
[1735770396736,2.5753,194.54,194.49,2.5759]
[1735770398143,2.5753,194.54,194.5,8.1740778]
[1735770403644,8.1740778,194.57,194.5,8.1740778]
[1735770403843,8.1740778,194.55,194.48,2.9]
[1735770404049,8.1740778,194.55,194.48,11.0740778]
[1735770404442,2.5757,194.52,194.48,11.0740778]
[1735770408559,2.5758,194.51,194.46,5.6837]
[1735770408752,8.1740778,194.52,194.46,5.6837]
[1735770408753,8.1740778,194.52,194.46,4.5212]
[1735770408958,8.1740778,194.52,194.46,1.6212]
[1735770409259,8.1740778,194.52,194.46,4.5212]
[1735770409460,2.5759,194.5,194.46,4.5212]
[1735770410556,2.5759,194.5,194.46,1.6212]
[1735770410762,2.5761,194.49,194.46,2.9]
[1735770413964,2.5762,194.48,194.45,12.68411924]
[1735770414263,2.5762,194.48,194.45,7.41004144]
[1735770416765,8.1740778,194.5,194.45,7.41004144]
[1735770417464,2.5762,194.48,194.45,7.41004144]
[1735770422969,2.5762,194.48,194.45,4.51004144]
[1735770428373,2.5762,194.47,194.45,4.51004144]
[1735770442182,2.5764,194.46,194.45,4.51004144]
[1735770442480,8.1740778,194.48,194.41,3.064]
[1735770442672,8.1740778,194.48,194.42,2.9]
[1735770443481,2.5767,194.44,194.42,2.9]
[1735770444281,8.1740778,194.46,194.4,29.48681814]
[1735770444583,8.1740778,194.46,194.4,32.38681814]
[1735770445473,2.577,194.42,194.4,32.38681814]
[1735770445674,8.1740778,194.44,194.39,2.9]
[1735770446080,2.5771,194.41,194.39,2.9]
[1735770448279,2.5772,194.4,194.38,11.94975646]
[1735770448484,8.1740778,194.42,194.38,3.77567866]
[1735770448679,8.1740778,194.42,194.37,2.9]
[1735770450283,2.5774,194.38,194.37,2.9]
[1735770450983,2.5774,194.38,194.36,9.7298778]
[1735770451784,2.5774,194.38,194.36,1.5558]
[1735770460996,2.84272476,194.47,194.37,8.1740778]
[1735770461290,8.1740778,194.46,194.4,8.1740778]
[1735770461683,2.5769,194.43,194.4,8.1740778]
[1735770463994,2.5766,194.44,194.4,8.1740778]
[1735770464895,2.5766,194.44,194.4,11.0740778]
[1735770465187,2.84272476,194.47,194.4,2.9]
[1735770465791,2.5765,194.45,194.4,2.9]
[1735770465991,2.84272476,194.47,194.4,2.9]
[1735770467391,2.5767,194.44,194.4,2.9]
[1735770472601,8.1740778,194.42,194.33,8.1740778]
[1735770472804,8.1740778,194.38,194.31,8.1740778]
[1735770473509,2.5778,194.35,194.31,8.1740778]
[1735770474907,8.1740778,194.38,194.31,8.1740778]
[1735770475113,2.578,194.34,194.31,8.1740778]
[1735770479420,2.5778,194.35,194.31,8.1740778]
[1735770479812,8.1740778,194.32,194.25,2.5792]
[1735770480010,8.1740778,194.32,194.24,4.4594]
[1735770480219,8.1740778,194.3,194.24,9.7334778]
[1735770480418,2.9,194.35,194.24,9.7334778]
[1735770480720,8.1740778,194.3,194.24,9.7334778]
[1735770482520,2.5788,194.28,194.24,9.7334778]
[1735770482918,8.1740778,194.3,194.24,9.7334778]
[1735770483118,10.7526778,194.3,194.24,9.7334778]
[1735770484019,10.7526778,194.3,194.24,12.3126778]
[1735770484912,8.1740778,194.28,194.22,8.1740778]
[1735770485811,8.1740778,194.28,194.22,8.09895788]
[1735770486017,8.1740778,194.28,194.24,2.5792]
[1735770490325,8.1740778,194.28,194.21,2.9]
[1735770490627,8.1740778,194.31,194.24,8.1740778]
[1735770491029,8.1740778,194.29,194.26,2.579]
[1735770491221,8.1740778,194.29,194.21,2.9]
[1735770492426,10.7528778,194.29,194.24,2.5793]
[1735770494027,8.1740778,194.29,194.21,2.9]
[1735770494323,8.1740778,194.29,194.22,8.1740778]
[1735770494932,8.1740778,194.3,194.22,8.1740778]
[1735770496431,8.1740778,194.3,194.26,2.5789]
[1735770501435,8.1740778,194.28,194.26,2.5789]
[1735770507043,2.5784,194.31,194.27,2.5789]
[1735770507239,8.1740778,194.29,194.27,2.5789]
[1735770522756,8.1740778,194.29,194.23,2.9]
[1735770522955,8.1740778,194.29,194.26,2.5789]
[1735770524759,8.1740778,194.29,194.23,2.9]
[1735770524958,8.1740778,194.29,194.28,2.5788]
[1735770528063,2.5788,194.28,194.24,2.5793]
[1735770528268,8.1740778,194.27,194.24,2.5793]
[1735770541074,2.5788,194.28,194.24,2.5793]
[1735770541275,8.1740778,194.27,194.24,2.5793]
[1735770554181,8.1740778,194.25,194.2,2.65270397]
[1735770554380,8.1740778,194.25,194.22,2.5794]
[1735770556588,8.1740778,194.23,194.22,2.5794]
[1735770557685,2.5792,194.26,194.22,2.5794]
[1735770557884,8.1740778,194.24,194.22,2.5794]
[1735770559184,2.5795,194.23,194.2,2.65270397]
[1735770559385,8.1740778,194.21,194.2,2.65270397]
[1735770560290,8.1740778,194.21,194.14,22.15818091]
[1735770560491,8.1740778,194.18,194.15,6.97519688]
[1735770560787,8.1740778,194.18,194.16,2.5802]
[1735770560988,8.1740778,194.18,194.15,2.9]
[1735770561891,8.1740778,194.18,194.14,22.15818091]
[1735770562088,8.1740778,194.18,194.1,28.55458722]
[1735770562089,8.1740778,194.16,194.1,28.55458722]
[1735770562385,8.1740778,194.12,194.11,2.581]
[1735770562587,2.9,194.19,194.1,28.55458722]
[1735770562784,8.1740778,194.16,194.15,2.5805]
[1735770564290,8.1740778,194.16,194.08,2.9]
[1735770564493,8.1740778,194.13,194.08,2.9]
[1735770565188,8.1740778,194.13,194.12,2.5809]
[1735770568190,8.1740778,194.15,194.08,11.0740778]
[1735770568390,8.1740778,194.16,194.08,11.0740778]
[1735770568590,8.1740778,194.16,194.1,8.1740778]
[1735770569496,2.5796,194.22,194.12,8.1740778]
[1735770569699,8.1740778,194.19,194.13,4.469]
[1735770570495,8.1740778,194.19,194.17,2.5801]
[1735770574199,8.1740778,194.19,194.16,2.58]
[1735770574395,8.1740778,194.19,194.13,4.469]
[1735770574898,8.1740778,194.19,194.16,2.5801]
[1735770580603,8.1740778,194.17,194.16,2.5801]
[1735770583106,8.1740778,194.19,194.13,2.9]
[1735770583307,8.1740778,194.19,194.17,2.58]
[1735770592810,2.5795,194.21,194.17,2.58]
[1735770593001,8.1740778,194.2,194.17,2.58]
[1735770594407,1.6036,194.24,194.13,11.0740778]
[1735770594607,8.1740778,194.2,194.17,2.5799]
[1735770599019,8.1740778,194.18,194.17,2.5799]
[1735770600420,2.5794,194.22,194.17,2.5799]
[1735770600620,8.1740778,194.2,194.17,2.5799]
[1735770603217,2.5794,194.22,194.17,2.5799]
[1735770603417,4.55299047,194.28,194.19,8.1740778]
[1735770603619,15.30566827,194.28,194.24,2.5791]
[1735770603924,8.77406368,194.31,194.23,11.0740778]
[1735770604124,8.77406368,194.31,194.24,2.9]
[1735770604318,93.64700327,194.32,194.25,8.1740778]
[1735770604523,85.47292547,194.32,194.25,8.1740778]
[1735770605221,85.47292547,194.32,194.29,2.5784]
[1735770608425,8.1740778,194.33,194.29,2.5784]
[1735770608626,1.531,194.37,194.25,8.1740778]
[1735770608930,8.1740778,194.33,194.3,2.5782]
[1735770618238,8.1740778,194.31,194.26,2.5787]
[1735770618432,8.1740778,194.31,194.25,1.5176]
[1735770620035,8.1740778,194.31,194.28,2.5786]
[1735770624335,8.1740778,194.31,194.27,2.9]
[1735770624541,8.1740778,194.33,194.27,2.9]
[1735770624931,2.5774,194.37,194.31,2.5781]
[1735770625132,8.1740778,194.33,194.31,2.5781]
[1735770629339,8.1740778,194.33,194.27,2.9]
[1735770629534,8.1740778,194.31,194.27,2.9]
[1735770630545,8.1740778,194.31,194.28,2.5786]
[1735770632645,2.5781,194.32,194.28,2.5786]
[1735770632846,10.7521778,194.32,194.28,2.5786]
[1735770634948,3.0622,194.41,194.27,2.9]
[1735770635247,10.7519778,194.33,194.29,2.5784]
[1735770640541,10.7519778,194.33,194.3,2.5783]
[1735770648152,8.1740778,194.33,194.3,2.5783]
[1735770648356,8.1740778,194.35,194.28,11.0740778]
[1735770648653,8.1740778,194.36,194.33,2.5778]
[1735770656949,8.1740778,194.36,194.28,2.9]
[1735770657256,10.7515778,194.36,194.32,2.578]
[1735770657458,8.1740778,194.36,194.32,2.578]
[1735770657859,8.76104571,194.4,194.28,2.9]
[1735770658060,8.1740778,194.35,194.33,2.5779]
[1735770670068,8.76104571,194.4,194.34,2.5777]
[1735770670263,8.1740778,194.37,194.34,2.5777]
[1735770677267,2.5773,194.38,194.34,2.5777]
[1735770677472,8.1740778,194.36,194.34,2.5777]
[1735770679477,8.1740778,194.36,194.32,2.9]
[1735770679675,8.1740778,194.41,194.33,8.1740778]
[1735770680475,8.1740778,194.41,194.38,2.5772]
[1735770683576,8.1740778,194.41,194.39,2.577]
[1735770683877,56.45488516,194.43,194.39,2.577]
[1735770684071,53.87828516,194.43,194.39,2.577]
[1735770686678,56.45488516,194.43,194.39,2.577]
[1735770689076,8.1740778,194.43,194.4,2.5769]
[1735770690075,10.58487128,194.45,194.39,2.5771]
[1735770690276,8.1740778,194.44,194.38,8.1740778]
[1735770690778,8.1740778,194.44,194.42,2.5766]
[1735770690971,8.1740778,194.44,194.42,5.4766]
[1735770691169,10.58487128,194.45,194.42,2.9]
[1735770691483,10.58487128,194.45,194.43,2.5766]
[1735770691980,10.58487128,194.45,194.44,2.5765]
[1735770692781,2.5758,194.5,194.45,2.5763]
[1735770692972,8.1740778,194.49,194.42,11.0740778]
[1735770694578,8.1740778,194.49,194.46,2.5761]
[1735770694779,8.1740778,194.49,194.47,2.9]
[1735770701781,8.1740778,194.51,194.48,2.5759]
[1735770701981,2.5754,194.52,194.48,2.5759]
[1735770702587,2.5753,194.54,194.49,2.5757]
[1735770702776,10.7493778,194.54,194.49,2.5757]
[1735770705687,10.7493778,194.54,194.5,2.5757]
[1735770708386,8.1740778,194.54,194.48,8.1740778]
[1735770708593,8.1740778,194.54,194.51,2.5755]
[1735770708790,8.1740778,194.54,194.52,2.9]
[1735770714792,2.575,194.55,194.52,2.9]
[1735770714994,10.7490778,194.55,194.52,2.9]
[1735770717701,2.575,194.55,194.52,2.9]
[1735770717898,10.7490778,194.55,194.52,2.9]
[1735770721198,2.575,194.55,194.52,2.9]
[1735770726610,2.575,194.55,194.52,5.4756]
[1735770734617,8.1740778,194.56,194.52,5.4756]
[1735770734912,10.7491778,194.56,194.52,5.4756]
[1735770740420,8.1740778,194.58,194.52,2.9]
[1735770742422,8.1740778,194.58,194.55,2.5751]
[1735770745414,4.56216465,194.63,194.52,9.00909023]
[1735770745415,8.76864834,194.62,194.53,8.1740778]
[1735770745620,16.94272614,194.62,194.55,8.1740778]
[1735770745817,8.1740778,194.62,194.55,8.1740778]
[1735770746425,8.1740778,194.62,194.57,2.5749]
[1735770746627,8.1740778,194.62,194.58,2.9]
[1735770747219,8.1740778,194.62,194.58,5.4747]
[1735770749922,10.7482778,194.62,194.58,5.4747]
[1735770750425,85.47292547,194.71,194.59,8.1740778]
[1735770750630,8.1740778,194.67,194.62,2.5741]
[1735770750823,8.1740778,194.67,194.63,2.88]
[1735770751525,2.5737,194.66,194.63,2.88]
[1735770753334,8.1740778,194.67,194.63,2.88]
[1735770753528,8.1740778,194.67,194.64,2.5739]
[1735770754431,8.74162829,194.74,194.63,11.0540778]
[1735770754623,2.5732,194.7,194.63,11.0540778]
[1735770754829,4.59593817,194.76,194.65,8.1740778]
[1735770755330,4.59593817,194.76,194.67,8.1740778]
[1735770755531,8.1740778,194.76,194.69,8.1740778]
[1735770755831,8.1740778,194.76,194.7,2.88]
[1735770756033,8.1740778,194.76,194.7,5.453]
[1735770757032,8.1740778,194.78,194.71,8.1740778]
[1735770757231,2.5722,194.77,194.72,2.5728]
[1735770765241,8.1740778,194.76,194.72,2.5728]
[1735770765941,8.1740778,194.76,194.71,10.7470778]
[1735770766242,8.1740778,194.74,194.72,2.88]
[1735770767435,10.7466778,194.74,194.72,2.88]
[1735770769032,10.7466778,194.74,194.69,2.5732]
[1735770769231,10.7466778,194.74,194.72,2.88]
[1735770772145,2.5726,194.74,194.72,2.88]
[1735770775048,10.7466778,194.75,194.72,2.88]
[1735770775253,2.5726,194.75,194.72,2.88]
[1735770775449,10.7466778,194.75,194.72,2.88]
[1735770778457,8.1740778,194.75,194.72,2.88]
[1735770780661,2.5724,194.76,194.72,2.88]
[1735770780859,10.7464778,194.76,194.72,2.88]
[1735770781660,10.7464778,194.76,194.72,5.4528]
[1735770785561,8.1740778,194.76,194.73,2.5728]
[1735770787763,8.1740778,194.76,194.72,2.88]
[1735770789567,8.1740778,194.76,194.74,2.5726]
[1735770798272,8.1740778,194.76,194.72,5.4529]
[1735770799664,10.7464778,194.76,194.72,5.4529]
[1735770800375,8.1740778,194.76,194.72,2.88]
[1735770800579,4.7809711,194.78,194.7,2.88]
[1735770800580,2.5731,194.72,194.7,2.88]
[1735770800774,10.7471778,194.72,194.7,2.88]
[1735770801773,2.5731,194.71,194.7,2.88]
[1735770802378,2.5731,194.71,194.68,2.88]
[1735770802773,2.5731,194.71,194.66,12.2175778]
[1735770802974,2.5731,194.71,194.67,2.88]
[1735770803375,8.1740778,194.72,194.67,2.88]
[1735770803581,2.5732,194.7,194.67,2.88]
[1735770804579,10.7472778,194.7,194.67,2.88]
[1735770804975,10.7472778,194.7,194.65,6.10485913]
[1735770805177,10.7472778,194.7,194.66,2.88]
[1735770805880,2.5732,194.69,194.66,2.88]
[1735770807181,8.77199009,194.76,194.66,2.88]
[1735770807374,8.1740778,194.73,194.67,8.1740778]
[1735770808583,8.1740778,194.73,194.69,2.5731]
[1735770810183,2.5725,194.74,194.7,2.573]
[1735770815589,2.5727,194.73,194.69,2.5731]
[1735770825700,8.1740778,194.74,194.67,8.1740778]
[1735770825900,2.573,194.71,194.67,10.7474778]
[1735770826200,2.573,194.71,194.67,2.5734]
[1735770827000,8.1740778,194.72,194.66,5.4535]
[1735770827198,8.1740778,194.7,194.67,2.88]
[1735770827997,8.1740778,194.7,194.66,2.88]
[1735770828300,2.5732,194.69,194.66,2.88]
[1735770834804,10.7470778,194.71,194.66,2.88]
[1735770835104,8.1740778,194.71,194.66,2.88]
[1735770836404,2.5731,194.7,194.66,2.88]
[1735770837502,2.5731,194.7,194.65,16.85253693]
[1735770837707,2.5731,194.7,194.66,2.88]
[1735770838205,8.1740778,194.71,194.66,2.88]
[1735770838409,2.5733,194.69,194.66,2.88]
[1735770850212,8.1740778,194.71,194.66,2.88]
[1735770850406,2.573,194.7,194.66,5.4535]
[1735770850602,8.1740778,194.73,194.66,2.88]
[1735770851005,2.5728,194.72,194.68,2.5733]
[1735770854414,2.5729,194.71,194.68,2.5733]
[1735770857816,2.5729,194.71,194.66,2.88]
[1735770858013,2.5729,194.71,194.67,2.5734]
[1735770859421,10.7469778,194.71,194.67,2.5734]
[1735770864618,2.5729,194.71,194.67,2.5734]
[1735770870126,2.5731,194.7,194.67,2.5734]
[1735770876929,8.1740778,194.72,194.66,2.88]
[1735770877127,8.1740778,194.68,194.61,3.0585]
[1735770877327,8.1740778,194.68,194.62,2.88]
[1735770877626,8.1740778,194.66,194.62,9.7351661]
[1735770878027,8.1740778,194.66,194.62,6.8551661]
[1735770878223,8.1740778,194.66,194.63,2.88]
[1735770878420,10.7476778,194.66,194.63,2.88]
[1735770881019,10.7476778,194.66,194.62,6.8551661]
[1735770881229,2.5737,194.65,194.63,2.88]
[1735770882427,2.5737,194.65,194.62,6.8551661]
[1735770882625,2.5737,194.65,194.62,9.7351661]
[1735770883727,2.5742,194.62,194.57,2.5747]
[1735770883931,10.7482778,194.62,194.59,2.88]
[1735770884328,2.5742,194.62,194.59,2.88]
[1735770889733,8.1740778,194.63,194.59,2.88]
[1735770889940,2.5744,194.6,194.59,2.88]
[1735770890938,2.5744,194.6,194.58,6.85665951]
[1735770897143,8.1740778,194.59,194.58,6.85665951]
[1735770897539,10.7485778,194.59,194.58,6.85665951]
[1735770897840,2.5745,194.59,194.58,6.85665951]
[1735770898938,2.5745,194.59,194.55,2.575]
[1735770900443,8.74071643,194.66,194.54,11.0540778]
[1735770900743,10.7024151,194.85,194.61,2.5742]
[1735770900744,8.1740778,194.64,194.61,2.5742]
[1735770901741,8.1740778,194.64,194.6,2.5744]
[1735770902141,10.7480778,194.64,194.59,9.73606341]
[1735770902340,10.7480778,194.64,194.59,12.31056341]
[1735770905442,2.574,194.64,194.59,12.31056341]
[1735770905642,2.5739,194.65,194.61,2.5744]
[1735770906040,2.5739,194.65,194.59,9.73606341]
[1735770906542,2.5739,194.65,194.6,2.5745]
[1735770907544,2.574,194.64,194.6,2.5745]
[1735770908239,10.7480778,194.64,194.6,2.5745]
[1735770909047,2.574,194.64,194.6,2.5745]
[1735770909239,10.7480778,194.64,194.6,2.5745]
[1735770909440,2.574,194.64,194.6,2.5745]
[1735770910353,8.1740778,194.66,194.59,6.85606341]
[1735770910559,2.5743,194.62,194.6,2.88]
[1735770910760,8.1740778,194.64,194.6,2.88]
[1735770912559,2.5741,194.63,194.6,2.88]
[1735770916861,8.1740778,194.64,194.6,2.88]
[1735770917056,2.5743,194.62,194.6,2.88]
[1735770918665,2.5744,194.61,194.6,2.88]
[1735770918859,8.1740778,194.64,194.59,6.85606341]
[1735770919059,8.1740778,194.62,194.56,2.88]
[1735770919258,2.5746,194.6,194.56,2.88]
[1735770921455,8.1740778,194.63,194.56,2.88]
[1735770921661,2.5747,194.59,194.56,2.88]
[1735770922466,2.5747,194.59,194.55,5.7106]
[1735770922664,2.5747,194.59,194.56,2.88]
[1735770926770,8.1740778,194.61,194.55,3.1354]
[1735770926969,8.1740778,194.59,194.56,2.88]
[1735770927271,8.1740778,194.59,194.55,9.73741478]
[1735770928568,8.75348848,194.63,194.55,9.73741478]
[1735770928775,8.1740778,194.59,194.55,9.73741478]
[1735770929174,8.1740778,194.59,194.55,6.85741478]
[1735770929473,2.575,194.56,194.55,6.85741478]
[1735770936078,2.5757,194.51,194.47,2.5762]
[1735770936276,13.15138848,194.61,194.48,2.88]
[1735770936479,8.1740778,194.53,194.47,2.5762]
[1735770936682,8.1740778,194.53,194.48,2.88]
[1735770936979,2.5756,194.52,194.48,2.88]
[1735770937375,2.5756,194.52,194.47,2.5762]
[1735770937580,2.5757,194.51,194.47,2.5762]
[1735770937781,2.5757,194.51,194.48,2.88]
[1735770938075,2.5757,194.51,194.47,2.5762]
[1735770938280,2.5757,194.51,194.48,2.88]
[1735770940179,10.7497778,194.51,194.48,2.88]
[1735770941678,8.75348848,194.6,194.48,2.88]
[1735770941878,2.5758,194.5,194.46,2.5763]
[1735770942071,2.5758,194.5,194.47,2.88]
[1735770942672,10.7500778,194.49,194.47,2.88]
[1735770944681,8.1740778,194.49,194.45,43.88046653]
[1735770944883,8.1740778,194.49,194.45,17.09487242]
[1735770945085,8.1740778,194.47,194.45,14.21487242]
[1735770945476,2.5759,194.5,194.45,16.79127242]
[1735770945781,10.7499778,194.5,194.45,14.21487242]
[1735770946579,10.7499778,194.5,194.46,2.5763]
[1735770947578,10.7499778,194.5,194.45,16.79137242]
[1735770947981,2.5759,194.5,194.45,16.79137242]
[1735770948285,8.1740778,194.49,194.45,16.79137242]
[1735770950582,10.7494778,194.54,194.49,2.5758]
[1735770950785,10.7494778,194.54,194.5,2.88]
[1735770951180,8.1740778,194.54,194.5,2.88]
[1735770952582,8.1740778,194.54,194.51,2.5756]
[1735770953387,8.1740778,194.54,194.5,2.88]
[1735770953686,8.1740778,194.56,194.53,2.5754]
[1735770955491,2.5749,194.58,194.53,2.5754]
[1735770955893,8.1740778,194.57,194.53,2.5754]
[1735770956689,2.5749,194.58,194.53,2.5754]
[1735770956989,8.1740778,194.57,194.53,2.5754]
[1735770957287,10.7489778,194.57,194.53,2.5754]
[1735770958692,10.7489778,194.57,194.52,2.5755]
[1735770962096,2.5749,194.57,194.52,2.5755]
[1735770963297,10.7489778,194.57,194.52,2.5755]
[1735770963501,2.5749,194.57,194.52,2.5755]
[1735770963794,10.7489778,194.57,194.52,2.5755]
[1735770973295,3.0727,194.63,194.55,2.5751]
[1735770973499,1.5551,194.63,194.56,2.88]
[1735770973700,8.1740778,194.61,194.56,2.88]
[1735770973899,2.5745,194.6,194.56,2.88]
[1735770974507,2.5745,194.6,194.56,5.4549]
[1735770977904,2.5741,194.63,194.59,2.5746]
[1735770978208,10.7481778,194.63,194.59,2.5746]
[1735770981212,8.1740778,194.63,194.6,2.5744]
[1735770981418,8.1740778,194.63,194.61,2.88]
[1735770982707,2.574,194.64,194.61,2.88]
[1735770983614,8.1740778,194.65,194.61,2.88]
[1735770983912,10.7478778,194.65,194.61,2.88]
[1735770984609,2.5738,194.65,194.61,2.88]
[1735770984811,10.7478778,194.65,194.61,2.88]
[1735770985414,2.5738,194.65,194.61,2.88]
[1735770987210,10.7478778,194.65,194.61,2.88]
[1735770988613,2.5738,194.65,194.61,2.88]
[1735770988819,10.7478778,194.65,194.61,2.88]
[1735770990128,2.5738,194.65,194.61,2.88]
[1735770990419,8.1740778,194.64,194.61,2.88]
[1735770995321,2.5738,194.65,194.61,2.88]
[1735770995517,2.5738,194.65,194.61,5.4543]
[1735770996619,1.5997,194.7,194.61,2.88]
[1735770996922,8.1740778,194.68,194.61,2.88]
[1735770997315,10.7474778,194.68,194.64,2.5738]
[1735770999127,8.1740778,194.68,194.64,2.5738]
[1735771005115,10.7475778,194.68,194.64,2.5738]
[1735771005315,8.1740778,194.66,194.61,2.88]
[1735771006524,2.5739,194.65,194.61,5.4543]
[1735771009022,2.5739,194.65,194.61,2.5743]
[1735771009326,2.5741,194.63,194.62,2.88]
[1735771010021,2.5741,194.63,194.61,2.88]
[1735771011529,8.1740778,194.66,194.61,2.88]
[1735771011829,2.574,194.64,194.61,2.88]
[1735771019134,8.1740778,194.66,194.61,2.88]
[1735771019329,2.5738,194.65,194.61,2.88]
[1735771021735,2.5738,194.65,194.61,5.4543]
[1735771028633,10.7477778,194.66,194.61,5.4543]
[1735771032139,8.1740778,194.66,194.62,2.5742]
[1735771032340,10.35624078,194.7,194.61,2.88]
[1735771032537,8.1740778,194.67,194.61,2.88]
[1735771033434,10.7476778,194.67,194.63,2.5741]
[1735771041944,2.574,194.64,194.59,2.5745]
[1735771042245,8.1740778,194.65,194.58,6.8563318]
[1735771042446,8.1740778,194.63,194.59,2.88]
[1735771043343,2.5744,194.62,194.59,2.88]
[1735771045547,8.1740778,194.63,194.6,2.5745]
[1735771045749,8.1740778,194.65,194.6,2.5745]
[1735771046548,2.5741,194.64,194.59,5.4546]
[1735771048053,2.5741,194.64,194.59,2.88]
[1735771048248,2.5741,194.64,194.6,2.5744]
[1735771054756,8.1740778,194.65,194.59,2.88]
[1735771054948,8.1740778,194.65,194.63,2.5741]
[1735771055453,10.7476778,194.67,194.63,2.5741]
[1735771060659,2.5737,194.66,194.63,2.5741]
[1735771067364,2.574,194.65,194.62,2.88]
[1735771069565,8.1740778,194.65,194.62,2.88]
[1735771069757,2.5741,194.63,194.59,2.88]
[1735771071566,2.5741,194.63,194.59,5.4545]
[1735771075072,2.5741,194.63,194.59,2.88]
[1735771075274,2.5741,194.63,194.6,2.5745]
[1735771076077,2.5741,194.63,194.59,5.4546]
[1735771076980,2.5741,194.63,194.59,2.5746]
[1735771077279,8.1740778,194.64,194.58,6.8563318]
[1735771077476,8.1740778,194.62,194.58,6.8563318]
[1735771077683,8.1740778,194.6,194.54,29.99392281]
[1735771077978,8.1740778,194.6,194.54,2.88]
[1735771078382,4.5640636,194.66,194.54,2.88]
[1735771078583,8.1740778,194.6,194.54,2.88]
[1735771079280,8.1740778,194.58,194.51,2.88]
[1735771079472,8.1740778,194.58,194.49,16.8038246]
[1735771079675,8.1740778,194.58,194.5,6.94213991]
[1735771079879,8.1740778,194.58,194.51,4.06213991]
[1735771080077,8.1740778,194.56,194.5,2.88]
[1735771080277,8.1740778,194.56,194.51,4.0627124]
[1735771080481,2.5753,194.55,194.5,5.4558]
[1735771080783,8.1740778,194.55,194.5,5.4558]
[1735771081483,2.5756,194.53,194.49,8.6297468]
[1735771081679,2.5756,194.53,194.49,11.5097468]
[1735771081880,8.1740778,194.55,194.49,11.5097468]
[1735771082079,2.5757,194.52,194.49,7.1386468]
[1735771082282,8.1740778,194.53,194.49,7.1386468]
[1735771083484,2.5757,194.51,194.49,7.1386468]
[1735771083685,2.5757,194.51,194.47,11.0540778]
[1735771083877,2.5757,194.51,194.47,2.88]
[1735771085287,2.5757,194.51,194.46,5.4564]
[1735771086589,2.88,194.57,194.43,14.21582589]
[1735771086888,2.576,194.5,194.44,5.4566]
[1735771087783,2.5762,194.48,194.44,2.88]
[1735771088196,8.1740778,194.49,194.44,2.88]
[1735771088488,2.5763,194.47,194.44,2.88]
[1735771088681,8.1740778,194.47,194.43,14.21582589]
[1735771089391,2.88,194.52,194.43,14.21582589]
[1735771089590,8.1740778,194.47,194.43,14.21582589]
[1735771090192,2.88,194.52,194.43,14.21582589]